Cogmind - Beta 10.2 *** ADVENTURER MODE // 2021.08.08 @ 22:06:18 Player: Icarus Result: Destroyed by D-53 Grenadier with Mini Grenade Launcher Performance ------------- Evolutions (0) 0 Regions Visited (2) 400 Robots Destroyed (6) 30 Value Destroyed (38) 38 Prototype IDs (0) 0 Alien Tech Used (0) 0 Bonus (0) 0 TOTAL SCORE: 468 Bonus ------- None Cogmind --------- Core Integrity 0/250 Matter 280/300 Energy 500/500 System Corruption 5% Temperature Cool (0) Movement Core (150) Ox2 Location -10/Mines Parts ------- > --- POWER (1) -------- (None) > --- PROPULSION (2) --- (None) > --- UTILITY (2) ------ Small Storage Unit High-capacity Battery > --- WEAPON (2) ------- (None) > --- INVENTORY (6) ---- Assault Rifle Light Assault Rifle Mining Laser Mining Laser Peak State ------------ > --- POWER ------------ Light Ion Engine > --- PROPULSION ------- Aluminum Leg Aluminum Leg > --- UTILITY ---------- Small Storage Unit Improved Terrain Scanner > --- WEAPON ----------- EM Pulse Gun Assault Rifle > --- INVENTORY -------- Light Ion Engine Light Assault Rifle [Rating: 8] Favorites ----------- Power Light Ion Engine Engine Light Ion Engine Propulsion Aluminum Leg Leg Aluminum Leg Utility Small Storage Unit Device Improved Terrain Scanner Storage Small Storage Unit Processor Seismic Analyzer Weapon Mining Laser Energy Gun EM Pulse Gun Ballistic Gun Assault Rifle Launcher Grenade Launcher Special Weapon Mining Laser Build | -11 -10 -10 ------- Run | Scr Mat Min Slots Evolved . | . . . Power . | . . . Propulsion . | . . . Utility . | . . . Weapon . | . . . Parts Attached 18 | 7 10 1 Power 2 | 1 1 . Engine 2 | 1 1 . Core . | . . . Reactor . | . . . Propulsion 2 | 2 . . Treads . | . . . Leg 2 | 2 . . Wheel . | . . . Hover . | . . . Flight . | . . . Utility 4 | 2 2 . Device 1 | 1 . . Storage 2 | 1 1 . Processor 1 | . 1 . Hackware . | . . . Protection . | . . . Artifact . | . . . Weapon 10 | 2 7 1 Energy Gun 2 | 1 1 . Energy Cannon . | . . . Ballistic Gun 2 | 1 1 . Ballistic Cannon . | . . . Launcher 2 | . 1 1 Special Weapon 4 | . 4 . Impact Weapon . | . . . Slashing Weapon . | . . . Piercing Weapon . | . . . Special Melee Weapon . | . . . Unidentified Prototypes . | . . . Parts Lost 11 | . 5 6 Power 2 | . 1 1 Propulsion 2 | . . 2 Utility 2 | . 2 . Weapon 5 | . 2 3 Highest Loss Streak 6 | . 3 6 Average Slot Usage (%) 83 | . 79 94 Engine 6 | . 3 12 Leg 27 | . 28 25 Device 1 | . 1 . Storage 18 | . 15 28 Processor 3 | . 4 . Energy Gun 3 | . . 12 Ballistic Gun 5 | . 3 14 Launcher 2 | . 2 . Special Weapon 14 | . 19 . Naked Turns . | . . . Heaviest Build 16 | 12 16 15 Greatest Support 20 | 20 20 20 Greatest Overweight (x) 3 | . . 3 Average Overweight (x) . | . . . Largest Inventory Capacity 6 | 6 6 6 Average Capacity 5 | 5 6 6 Most Carried 6 | 5 6 5 Average Carried 4 | 2 5 4 Final Capacity 6 | 6 6 6 Final Carried 5 | 5 5 4 Class Distribution -------------------- 100% | Mutant Dominant Class ---------------- Mutant | -10/Materials Mutant | -10/Mines Resources | -11 -10 -10 ----------- Run | Scr Mat Min Matter Collected 396 | 300 10 86 Remotely . | . . . Salvage Created 221 | 164 41 16 Parts 14 | 13 1 . Haulers Intercepted . | . . . Recyclers Shooed . | . . . Parts Field Recycled . | . . . Retrieved Matter . | . . . Parts Self-Destructed . | . . . Prevented . | . . . Kills | -11 -10 -10 ------- Run | Scr Mat Min Combat Hostiles Destroyed 1 | . . 1 Guns 1 | . . 1 Classes Destroyed 4 | 2 1 1 Builder 1 | . 1 . Tunneler 3 | 3 . . Recycler 2 | 1 1 . Assembled 1 | . . 1 Best Kill Streak 4 | 4 1 1 Combat Bots Only 1 | . . 1 Max Kills in Single Turn 1 | 1 1 1 Gunslinging . | . . . Exploded . | . . . Melee . | . . . Uniques/NPCs Destroyed . | . . . Combat | -11 -10 -10 -------- Run | Scr Mat Min Damage Taken 1058 | . 577 481 Core 252 | . 80 172 Absorbed by Shields . | . . . Core Remaining (%) 100 | 100 . . Volleys Fired 25 | 10 12 3 Largest 2 | 2 2 2 Hottest 200 | 60 200 60 Shots Fired 48 | 20 22 6 Gun 25 | 20 . 5 Cannon . | . . . Launcher 2 | . 1 1 Special 21 | . 21 . Kinetic 13 | 10 . 3 Thermal 21 | . 21 . Explosive 2 | . 1 1 Electromagnetic 12 | 10 . 2 Robot Hit Streak 12 | 12 2 6 Robot Miss Streak 1 | 1 1 1 Penetration Max . | . . . Secondary Targets . | . . . Shots Hit Robots 23 | 16 2 5 Core Hits 11 | 5 2 4 Critical Hits 1 | 1 . . Critical Kills . | . . . Critical Parts Destroyed 1 | 1 . . Melee Attacks . | . . . Impact . | . . . Slashing . | . . . Piercing . | . . . Sneak Attacks . | . . . Combat Hostiles . | . . . Follow-up Attacks . | . . . Damage Inflicted 328 | 209 48 71 Guns 273 | 209 . 64 Cannons . | . . . Explosions 7 | . . 7 Melee . | . . . Ramming . | . . . Kinetic 143 | 100 . 43 Thermal 48 | . 48 . Explosive 7 | . . 7 Electromagnetic 130 | 109 . 21 Impact . | . . . Slashing . | . . . Piercing . | . . . Highest Corruption 5 | . 5 5 Average Corruption 4 | . 4 5 Corruption Purged . | . . . Effects 12 | . 10 2 Message Errors 3 | . 2 1 Matter Fused 4 | . 3 1 Heat Flow Errors 1 | . 1 . Data Loss (minor) 1 | . 1 . Misfires 1 | . 1 . Targeting Errors 2 | . 2 . Overload Shots . | . . . Overflow Damage . | . . . Projectiles . | . . . Explosions . | . . . Melee . | . . . Knockbacks . | . . . Impact . | . . . Kinetic . | . . . Secondary . | . . . Self-Inflicted Damage 36 | . 34 2 Shots 2 | . 1 1 Rammed . | . . . Targets Rammed . | . . . Kicked . | . . . Crushed . | . . . Highest Temperature 247 | . 247 . Average Temperature 49 | . 49 . Received Heat Transfer . | . . . Siege Activations . | . . . Robots Corrupted . | . . . Combat Hostiles . | . . . Parts Fried . | . . . Impact Corruptions . | . . . Robots Melted . | . . . Combat Hostiles . | . . . Parts Melted . | . . . Heat Transferred 100 | . 100 . Parts Sabotaged . | . . . Parts Stolen . | . . . Parts Stripped . | . . . Power Chain Reactions . | . . . Missiles Intercepted . | . . . Alert | -11 -10 -10 ------- Run | Scr Mat Min Peak Influence 20 | 20 11 . Initial 11 | . 11 . Average 4 | 7 4 . Maximum Alert Level . | . . . Low Security (%) 100 | 100 100 100 Level 1 . | . . . Level 2 . | . . . Level 3 . | . . . Level 4 . | . . . Level 5 . | . . . High Security . | . . . Max Security . | . . . Squads Dispatched . | . . . Investigation . | . . . Extermination . | . . . Reinforcement . | . . . Assault . | . . . Garrison . | . . . Intercept . | . . . Construction Impeded . | . . . Haulers Reinforced . | . . . Stealth | -11 -10 -10 --------- Run | Scr Mat Min Distress Signals . | . . . Communications Jammed . | . . . Distress Signals . | . . . Times Spotted 3 | . . 3 Peak Tracking Total 2 | . . 2 Tactical Retreats . | . . . Traps | -11 -10 -10 ------- Run | Scr Mat Min Traps Triggered . | . . . Indirectly . | . . . Trap Hack Attempts . | . . . Triggered . | . . . Disarmed . | . . . Reprogrammed . | . . . Reused . | . . . Traps Extracted . | . . . Installed . | . . . Triggered . | . . . Machines | -11 -10 -10 ---------- Run | Scr Mat Min Machines Disabled . | . . . Max in Single Turn . | . . . Machines Sabotaged . | . . . Garrisons Compromised . | . . . Overloaded Fab Kills . | . . . Fab Network Shutdowns . | . . . Hacking | -11 -10 -10 --------- Run | Scr Mat Min Machines Accessed . | . . . Terminals . | . . . Fabricators . | . . . Repair Stations . | . . . Recycling Units . | . . . Scanalyzers . | . . . Garrison Access . | . . . Total Hacks . | . . . Successful . | . . . Failed . | . . . Catastrophic . | . . . Database Lockouts . | . . . Manual . | . . . Terminals . | . . . Fabricators . | . . . Repair Stations . | . . . Recycling Units . | . . . Scanalyzers . | . . . Garrison Access . | . . . Terminal Hacks . | . . . Fabricator Hacks . | . . . Repair Station Hacks . | . . . Recycling Unit Hacks . | . . . Scanalyzer . | . . . Garrison Access Hacks . | . . . Unauthorized Hacks . | . . . Terminals . | . . . Fabricators . | . . . Repair Stations . | . . . Recycling Units . | . . . Scanalyzers . | . . . Garrison Access . | . . . Data Cores Recovered . | . . . Used . | . . . Hacking Detections . | . . . Full Trace Events . | . . . Feedback Events . | . . . Feedback Blocked . | . . . Robot Schematics Acquired . | . . . Robots Built . | . . . Matter . | . . . Time . | . . . Total Robot Build Rating . | . . . Part Schematics Acquired . | . . . Parts Built . | . . . Matter . | . . . Time . | . . . Total Part Build Rating . | . . . Parts Repaired . | . . . Time . | . . . Parts Recycled . | . . . Recycled Matter . | . . . Retrieved Matter . | . . . Retrieved Components . | . . . Parts Scanalyzed . | . . . Part Schematics Acquired . | . . . Parts Damaged . | . . . Bothacking | -11 -10 -10 ------------ Run | Scr Mat Min Used RIF Installer . | . . . Robots Hacked . | . . . Non-combat . | . . . Combat . | . . . Robot Hacks Applied . | . . . Relay Couplers Released . | . . . Robots Rewired . | . . . Allies Hacked . | . . . Hacks Repelled . | . . . Allies | -11 -10 -10 -------- Run | Scr Mat Min Total Allies . | . . . Largest Group . | . . . Highest-Rated Group . | . . . Highest-Rated Ally . | . . . Total Orders . | . . . Ally Attacks . | . . . Total Damage . | . . . Kills . | . . . Allies Corrupted . | . . . Allies Melted . | . . . Intel | -11 -10 -10 ------- Run | Scr Mat Min Robot Analysis Total . | . . . Derelict Logs Recovered . | . . . Drone Launches . | . . . Drone Recoveries . | . . . Exploration | -11 -10 -10 ------------- Run | Scr Mat Min Turns Passed 572 | 156 316 100 Spaces Moved 278 | 100 105 73 Core 30 | 27 . 3 Treads . | . . . Legs 248 | 73 105 70 Wheels . | . . . Hover . | . . . Flight . | . . . Fastest Speed 50 | 50 120 120 Average Speed 114 | 101 120 123 Slowest Speed 200 | 120 120 200 Overloaded Moves . | . . . Propulsion Burnouts . | . . . Robots Hopped . | . . . Cave-ins Triggered 2 | . 2 . Exploration Rate (%) 16 | 5 11 34 Regions Visited 2 Branch Regions 1 Pre-discovered Areas . | . . . Known Exits Taken . | . . . Unknown Exits Taken 2 | 1 1 . Scrap Searched 1 | . . 1 Spaces Dug 17 | . 17 . Terrain Destroyed 29 | . 24 5 Melee . | . . . Projectile 17 | . 17 . AOE 12 | . 7 5 Terrain Rammed . | . . . Walls Destroyed . | . . . Machines Disabled . | . . . Actions | -11 -10 -10 --------- Run | Scr Mat Min Total 441 | 134 230 77 Wait 106 | 7 99 . Move 276 | 99 104 73 Hop . | . . . Pick Up 15 | 11 4 . Fast Attach 2 | 1 1 . Attach 11 | 6 4 1 Detach . | . . . Swap 5 | . 5 . Drop 1 | . 1 . Fire 25 | 10 12 3 Melee . | . . . Ram . | . . . Kick . | . . . Crush . | . . . Escape Stasis . | . . . Rewire . | . . . Trap . | . . . Miscellaneous . | . . . Route ------- -11/Scrapyard -10/Materials -10/Mines History --------- Turn | Location | Event 3 | -11/Scrapyard | Discovered new exit (range 15) 157 | -11/Scrapyard | Entered Materials 182 | -10/Materials | Crushed by falling debris 213 | -10/Materials | Lost 3 parts (1p1u1w) 236 | -10/Materials | Discovered new exit (range 12) 324 | -10/Materials | Build established: Mutant 410 | -10/Materials | Crushed by falling debris 473 | -10/Materials | Entered Mines 526 | -10/Mines | Assembled infested the area 570 | -10/Mines | Core integrity fell below 50% 573 | -10/Mines | Core integrity fell below 20% 573 | -10/Mines | Destroyed by D-53 Grenadier with Mini Grenade Launcher Last Messages --------------- R-06 Scavenger collects Wheel. Acquired 16 matter. R-06 Scavenger collects Structural Scanner. %T7Y6DD:Z6D&K5W&RMB&GYVMIJH PV0Y:U K-01 Serf collects debris. R-06 Scavenger collects Wheel. Acquired 17 matter. Acquired 19 matter. The unstable cave ceiling collapses. R-06 Scavenger destroyed. Lgt. Ion Engine destroyed. Aluminum Leg destroyed. EM Pulse Gun destroyed. Aluminum Leg destroyed. R-06 Scavenger collects Wheel. Grenade Launcher destroyed. The unstable cave ceiling collapses. System corrupted: Matter fused (-10). Assault Rifle destroyed. K-01 Serf collects debris. Map ----- +----------------------------------------------------+ | | | | | ????????????????????????????????????????????? | | ????????????????????????????????????????????? | | ????????????????????????????????????????????? | | ????????????????????????????????????????????? | | ??????????????????????###???????????????????? | | ???????????????????### ####????????????????? | | ?????????????????## # ? ??????????????? | | ?????????????????# ? ???????????????? | | ?????????????????# # ## ?????????????? | | ????????????????? "# ??????????????? | | ????????????????? # ????????????????? | | ????????????????? ?????????????????? | | ?????????????????? ??????????????????? | | ?????????????????## ???????????????????? | | ??????????######## ???????????????????? | | ?????????? d # ???????????????????? | | ??????????# #?# d ##??????????????????? | | ??????????# #?# ##?????????????????? | | ??????????# #?# ##????????????????? | | ??????????# #?# ##???????????????? | | ????????### #?# # r ##??????????????? | | ???????## ### # #??????????????? | | ### #### #####??????????? | | # @ #????????? | | # $ #???????? | | ????##### # #??????? | | ????????# ### #??????? | | ????????# # ##?### #??????? | | ????????#### ###????### #??????? | | ???????????# #????????# ##??????? | | ???????????# #????????## ##???????? | | ???????????# #?????????# ##????????? | | ???????????# ##??###???? #?????????? | | ??????????## ### ##???# #?????????? | | ??????????# #????# ?????????? | | ??????????# #????? # k ?????????? | | ??????????## $ ##????? ## ???????????? | | ???????????#### ##?????? #??????????????? | | ??????????????## #????????????????????????? | | ??????????????## #????????????????????????? | | ?????????????## ##????????????????????????? | | ????????????## ##????????????????????????? | | ??????????### #####????????????????????? | | ?????????## ##???????????????????? | | ?????????# #???????????????????? | | ?????????# # #???????????????????? | | ?????????# ## ### #???????????????????? | | ?????????# ?# !#??# #??????????????????? | +----------------------------------------------------+ Best States ------------- Heat Dissipation 25 Energy Generation 10 Energy Capacity 525 Matter Stores 300 Matter Capacity 300 Sight Range 16 Terrain Scan Range 16 Terrain Scan Density 60 Resistance: KI 20 Resistance: TH 20 Resistance: EX 20 Resistance: EM 20 Resistance: I 20 Resistance: S 20 Resistance: P 20 Evasion (%) 50 Offensive Hacking 10 Item Schematics ----------------- None Robot Schematics ------------------ None Fabricated ------------ Nothing Alien Tech Used ----------------- None Achievements -------------- Maybe Next Time I'll Detach My Launcher Challenges ------------ None Game ------ Seed DecoySwordPlating Manual? 0 Play Time 00:08:30 Cumulative 11.4 hours Start 2021.08.08 @ 21:58:56 End 2021.08.08 @ 22:06:18 Sessions 1 Manual Loads 0 Difficulty Adventurer Special Mode None Game No. 13 Rogue 0 Adventurer 13 Explorer 0 Win Type - Total 0 Types 0/0/0/0/0/0/0/0/0 Lore% 9 Gallery% 16 Achievement% 14 Wizard Run 0 Options --------- ASCII 0 Keyboard 0 Movement Mouse Keybinds 0 Fullscreen 0 Font 16/SmallcapsGlow Map View 76x50 Tactical HUD 0 Map Filters NONE Filters NONE Steam 1 RUN: be9e82b8-7387-49c5-93c6-c9629328fa3f